[Event "Championnat d'Europe de Blitz"]
[Date "2024.12.09"]
[White "Tudor, Henry Edward"]
[Black "Kadric, Denis"]
[WhiteElo "2375"]
[BlackElo "2544"]
[Round "10.37"]
[Result "1/2-1/2"]
[TimeControl "180+2"]

1. d4 {[%emt 00:16:37] [%clk 00:03:04]} d6 {[%clk 00:03:04]} 2. Nf3 {[%emt
00:00:01] [%clk 00:03:04]} Nf6 {[%emt 00:00:01] [%clk 00:03:05]} 3. c4 {[%clk
00:03:06]} g6 {[%clk 00:03:06]} 4. Nc3 {[%clk 00:03:07]} Bf5 {[%clk 00:03:08]}
5. Nh4 {[%emt 00:00:13] [%clk 00:02:57]} Bd7 {[%emt 00:00:01] [%clk 00:03:08]}
6. e4 {[%emt 00:00:04] [%clk 00:02:55]} e5 {[%emt 00:00:01] [%clk 00:03:09]} 7.
Nf3 {[%clk 00:02:56]} Bg7 {[%clk 00:03:10]} 8. Be2 {[%clk 00:02:58]} O-O {[%emt
00:00:01] [%clk 00:03:11]} 9. O-O {[%emt 00:00:01] [%clk 00:02:59]} Re8 {[%clk
00:03:12]} 10. d5 {[%emt 00:00:13] [%clk 00:02:48]} a5 {[%clk 00:03:13]} 11. Ne1
{[%emt 00:00:19] [%clk 00:02:31]} Na6 {[%emt 00:00:02] [%clk 00:03:13]} 12. Nd3
{[%clk 00:02:32]} b6 {[%emt 00:00:05] [%clk 00:03:10]} 13. Rb1 {[%emt 00:00:10]
[%clk 00:02:24]} Nc5 {[%emt 00:00:16] [%clk 00:02:56]} 14. f3 {[%emt 00:00:01]
[%clk 00:02:25]} Nh5 {[%emt 00:00:10] [%clk 00:02:47]} 15. b3 {[%emt 00:00:21]
[%clk 00:02:06]} f5 {[%emt 00:00:08] [%clk 00:02:40]} 16. a3 {[%emt 00:00:02]
[%clk 00:02:07]} Nxd3 {[%emt 00:00:16] [%clk 00:02:26]} 17. Bxd3 {[%emt
00:00:04] [%clk 00:02:05]} Nf4 {[%clk 00:02:27]} 18. Bc2 {[%emt 00:00:13] [%clk
00:01:54]} Qg5 {[%emt 00:00:32] [%clk 00:01:57]} 19. g3 {[%emt 00:00:21] [%clk
00:01:36]} Nh3+ {[%clk 00:01:59]} 20. Kg2 {[%emt 00:00:04] [%clk 00:01:34]} f4
{[%emt 00:00:09] [%clk 00:01:51]} 21. b4 {[%emt 00:00:10] [%clk 00:01:26]} axb4
{[%emt 00:00:02] [%clk 00:01:52]} 22. axb4 {[%clk 00:01:27]} Qh6 {[%emt
00:00:15] [%clk 00:01:39]} 23. Kh1 {[%emt 00:00:41] [%clk 00:00:48]} Ng5 {[%emt
00:00:01] [%clk 00:01:40]} 24. Ne2 {[%emt 00:00:16] [%clk 00:00:34]} fxg3 {[%emt
00:00:26] [%clk 00:01:16]} 25. Nxg3 {[%clk 00:00:35]} Qh4 {[%emt 00:00:02]} 26.
c5 {[%emt 00:00:10] [%clk 00:00:26]} Rf8 {[%emt 00:00:05] [%clk 00:01:15]} 27.
Be3 {[%emt 00:00:11] [%clk 00:00:17]} Ra3 {[%emt 00:00:15] [%clk 00:01:02]} 28.
Rb3 {[%emt 00:00:04] [%clk 00:00:15]} Rxb3 {[%emt 00:00:09] [%clk 00:00:55]} 29.
Bxb3 {[%clk 00:00:16]} bxc5 {[%emt 00:00:03] [%clk 00:00:53]} 30. bxc5 {[%emt
00:00:01] [%clk 00:00:17]} Bb5 {[%emt 00:00:14] [%clk 00:00:41]} 31. Rf2 {[%emt
00:00:03] [%clk 00:00:16]} Nh3 {[%clk 00:00:42]} 32. Rc2 {[%emt 00:00:09] [%clk
00:00:09]} Bh6 {[%emt 00:00:02] [%clk 00:00:42]} 33. Bxh6 {[%emt 00:00:06] [%clk
00:00:06]} Qxh6 {[%clk 00:00:43]} 34. cxd6 {[%clk 00:00:07]} cxd6 {[%clk
00:00:44]} 35. Kg2 {[%emt 00:00:05] [%clk 00:00:04]} Ng5 {[%emt 00:00:05] [%clk
00:00:41]} 36. Rf2 {[%clk 00:00:05]} Nh3 {[%emt 00:00:18] [%clk 00:00:26]} 37.
Ra2 {[%clk 00:00:06]} Nf4+ {[%emt 00:00:03] [%clk 00:00:25]} 38. Kh1 {[%clk
00:00:08]} Nd3 {[%emt 00:00:06] [%clk 00:00:21]} 39. Ba4 {[%emt 00:00:05] [%clk
00:00:05]} Bc4 {[%emt 00:00:11] [%clk 00:00:12]} 40. Rc2 {[%clk 00:00:06]} Ba6
{[%emt 00:00:03] [%clk 00:00:11]} 41. Bd7 {[%emt 00:00:04] [%clk 00:00:05]} Qe3
{[%emt 00:00:02] [%clk 00:00:11]} 42. Be6+ {[%emt 00:00:02] [%clk 00:00:05]} Kh8
{[%clk 00:00:13]} 43. Nf1 {[%emt 00:00:03] [%clk 00:00:03]} Nf2+ {[%emt
00:00:05] [%clk 00:00:10]} 44. Kg1 {[%clk 00:00:05]} Nxd1+ {[%emt 00:00:04]
[%clk 00:00:08]} 45. Nxe3 {[%clk 00:00:06]} Nxe3 {[%emt 00:00:01] [%clk
00:00:09]} 46. Rc6 {[%clk 00:00:08]} Rxf3 {[%emt 00:00:05] [%clk 00:00:06]} 47.
h4 {[%clk 00:00:09]} Bd3 {[%emt 00:00:02] [%clk 00:00:06]} 48. Rxd6 {[%emt
00:00:01] [%clk 00:00:10]} Bxe4 {[%clk 00:00:07]} 49. Rd8+ {[%clk 00:00:11]} Kg7
{[%clk 00:00:08]} 50. d6 {[%emt 00:00:02] [%clk 00:00:11]} Rf1+ {[%emt 00:00:01]
[%clk 00:00:09]} 51. Kh2 {[%clk 00:00:13]} Rd1 {[%emt 00:00:02] [%clk 00:00:09]}
52. d7 {[%emt 00:00:02] [%clk 00:00:14]} Bf5 {[%emt 00:00:05] [%clk 00:00:06]}
53. Rg8+ {[%emt 00:00:02] [%clk 00:00:13]} Kh6 {[%clk 00:00:08]} 54. Bxf5 {[%emt
00:00:03] [%clk 00:00:11]} Nxf5 {[%clk 00:00:09]} 55. d8=Q {[%emt 00:00:02]
[%clk 00:00:11]} Rxd8 {[%clk 00:00:10]} 56. Rxd8 {[%clk 00:00:12]} Nxh4 {[%clk
00:00:12]} 57. Re8 {[%emt 00:00:06] [%clk 00:00:08]} Nf5 {[%emt 00:00:09] [%clk
00:00:04]} 58. Rxe5 {[%emt 00:00:01] [%clk 00:00:09]} Kg5 {[%clk 00:00:06]} 59.
Ra5 {[%emt 00:00:01] [%clk 00:00:09]} h5 {[%clk 00:00:07]} 60. Ra4 {[%emt
00:00:02] [%clk 00:00:10]} Ne3 {[%emt 00:00:03] [%clk 00:00:06]} 61. Kh3 {[%emt
00:00:02] [%clk 00:00:10]} Nf5 {[%clk 00:00:08]} 62. Rb4 {[%emt 00:00:01] [%clk
00:00:11]} Kh6 {[%emt 00:00:02] [%clk 00:00:08]} 63. Rb6 {[%emt 00:00:01] [%clk
00:00:12]} Kg7 {[%clk 00:00:08]} 64. Rb7+ {[%emt 00:00:01] [%clk 00:00:13]} Kf6
{[%emt 00:00:01] [%clk 00:00:10]} 65. Rb6+ {[%clk 00:00:14]} Kf7 {[%clk
00:00:11]} 66. Rb7+ {[%emt 00:00:04] [%clk 00:00:12]} Kf6 {[%emt 00:00:01] [%clk
00:00:12]} 67. Rb6+ {[%clk 00:00:13]} Kg5 {[%clk 00:00:13]} 68. Rb5 {[%emt
00:00:03] [%clk 00:00:12]} Kf4 {[%emt 00:00:01] [%clk 00:00:14]} 69. Rb4+ {[%clk
00:00:13]} Ke5 {[%clk 00:00:15]} 70. Rb5+ {[%emt 00:00:02] [%clk 00:00:13]} Ke4
{[%emt 00:00:01] [%clk 00:00:16]} 71. Rb4+ {[%emt 00:00:02] [%clk 00:00:14]} Kf3
{[%emt 00:00:01] [%clk 00:00:16]} 72. Rb5 {[%emt 00:00:03] [%clk 00:00:13]} Ke4
{[%emt 00:00:03] [%clk 00:00:15]} 73. Rb4+ {[%emt 00:00:03] [%clk 00:00:13]} Nd4
{[%clk 00:00:16]} 74. Kh4 {[%emt 00:00:03] [%clk 00:00:12]} Ke5 {[%emt 00:00:01]
[%clk 00:00:17]} 75. Kg5 {[%emt 00:00:03] [%clk 00:00:11]} Nf3 {[%emt 00:00:02]
[%clk 00:00:18]} 76. Kxg6 {[%emt 00:00:03] [%clk 00:00:10]} h4 {[%clk 00:00:19]}
77. Rxh4 {[%emt 00:00:09] [%clk 00:00:03]} 1/2-1/2

[Site "Europe Echecs"]

[Event "Championnat d'Europe de Blitz"]
[Date "2024.12.09"]
[White "Krasteva, Beloslava"]
[Black "Mastrovasilis, Dimitrios"]
[WhiteElo "2281"]
[BlackElo "2537"]
[Round "10.38"]
[Result "0-1"]
[TimeControl "180+2"]

1. d4 {[%emt 00:20:09] [%clk 00:03:03]} d5 {[%emt 00:00:01] [%clk 00:03:03]} 2.
c4 {[%emt 00:00:01] [%clk 00:03:04]} e6 {[%emt 00:00:02] [%clk 00:03:03]} 3. Nc3
{[%clk 00:03:05]} Bb4 {[%emt 00:00:04] [%clk 00:03:01]} 4. a3 {[%emt 00:00:03]
[%clk 00:03:04]} Bxc3+ {[%emt 00:00:02] [%clk 00:03:01]} 5. bxc3 {[%emt
00:00:02] [%clk 00:03:04]} Nf6 {[%emt 00:00:07] [%clk 00:02:56]} 6. e3 {[%emt
00:00:04] [%clk 00:03:02]} c6 {[%emt 00:00:03] [%clk 00:02:55]} 7. cxd5 {[%emt
00:00:05] [%clk 00:02:59]} cxd5 {[%emt 00:00:02] [%clk 00:02:55]} 8. Nf3 {[%emt
00:00:05] [%clk 00:02:56]} O-O {[%emt 00:00:06] [%clk 00:02:51]} 9. c4 {[%emt
00:00:25] [%clk 00:02:33]} b6 {[%emt 00:00:06] [%clk 00:02:47]} 10. cxd5 {[%emt
00:00:17] [%clk 00:02:18]} Qxd5 {[%emt 00:00:03] [%clk 00:02:45]} 11. Be2 {[%emt
00:00:28] [%clk 00:01:53]} Ba6 {[%emt 00:00:17] [%clk 00:02:31]} 12. O-O {[%emt
00:00:02] [%clk 00:01:52]} Bxe2 {[%emt 00:00:19] [%clk 00:02:14]} 13. Qxe2
{[%emt 00:00:02] [%clk 00:01:53]} Nc6 {[%emt 00:00:17] [%clk 00:02:00]} 14. a4
{[%emt 00:00:04] [%clk 00:01:51]} Na5 {[%emt 00:00:07] [%clk 00:01:54]} 15. Ba3
{[%emt 00:00:18] [%clk 00:01:35]} Rfc8 {[%emt 00:00:02] [%clk 00:01:54]} 16. Ne5
{[%emt 00:00:12] [%clk 00:01:24]} Nc4 {[%emt 00:00:18] [%clk 00:01:39]} 17. Nxc4
{[%emt 00:00:35] [%clk 00:00:51]} Rxc4 {[%emt 00:00:12] [%clk 00:01:29]} 18. a5
{[%emt 00:00:03] [%clk 00:00:50]} b5 {[%emt 00:00:01] [%clk 00:01:30]} 19. a6
{[%emt 00:00:12] [%clk 00:00:41]} b4 {[%emt 00:00:08] [%clk 00:01:24]} 20. Bb2
{[%emt 00:00:02] [%clk 00:00:40]} Rac8 {[%clk 00:01:25]} 21. Rfc1 {[%emt
00:00:09] [%clk 00:00:34]} h6 {[%emt 00:00:17] [%clk 00:01:10]} 22. h3 {[%emt
00:00:04] [%clk 00:00:32]} Rxc1+ {[%emt 00:00:15] [%clk 00:00:58]} 23. Rxc1
{[%emt 00:00:07] [%clk 00:00:27]} Rxc1+ {[%emt 00:00:02] [%clk 00:00:58]} 24.
Bxc1 {[%emt 00:00:01] [%clk 00:00:28]} b3 {[%emt 00:00:05] [%clk 00:00:55]} 25.
f3 {[%emt 00:00:15] [%clk 00:00:15]} Qc6 {[%emt 00:00:08] [%clk 00:00:49]} 26.
Qb2 {[%emt 00:00:08] [%clk 00:00:08]} Nd5 {[%emt 00:00:06] [%clk 00:00:44]} 27.
Bd2 {[%emt 00:00:06] [%clk 00:00:05]} Qc2 {[%emt 00:00:15] [%clk 00:00:31]} 28.
Qc1 {[%emt 00:00:03] [%clk 00:00:04]} Qxc1+ {[%emt 00:00:10] [%clk 00:00:24]}
29. Bxc1 {[%emt 00:00:01] [%clk 00:00:04]} Nxe3 {[%emt 00:00:04] [%clk
00:00:22]} 30. Kf2 {[%emt 00:00:04] [%clk 00:00:00]} Nc4 {[%emt 00:00:04] [%clk
00:00:22]} 0-1

[Site "Europe Echecs"]

[Event "Championnat d'Europe de Blitz"]
[Date "2024.12.09"]
[White "Oliinyk, Serafym"]
[Black "Kozul, Zdenko"]
[WhiteElo "2207"]
[BlackElo "2519"]
[Round "10.39"]
[Result "0-1"]
[TimeControl "180+2"]

1. e4 {[%clk 00:03:03]} c5 {[%emt 00:00:01] [%clk 00:03:03]} 2. Nf3 {[%clk
00:03:04]} d6 {[%clk 00:03:04]} 3. d4 {[%clk 00:03:05]} cxd4 {[%emt 00:00:02]
[%clk 00:03:05]} 4. Nxd4 {[%clk 00:03:07]} Nf6 {[%emt 00:00:02] [%clk 00:03:05]}
5. Nc3 {[%clk 00:03:08]} Nc6 {[%clk 00:03:06]} 6. Bg5 {[%clk 00:03:08]} e6
{[%emt 00:00:02] [%clk 00:03:07]} 7. Bb5 {[%emt 00:00:03] [%clk 00:03:08]} Qb6
{[%emt 00:00:02] [%clk 00:03:08]} 8. Nb3 {[%emt 00:00:19] [%clk 00:02:50]} Be7
{[%emt 00:00:15] [%clk 00:02:54]} 9. Be3 {[%emt 00:00:02] [%clk 00:02:50]} Qc7
{[%emt 00:00:02] [%clk 00:02:55]} 10. Qf3 {[%emt 00:00:08] [%clk 00:02:43]} O-O
{[%emt 00:00:06] [%clk 00:02:52]} 11. g4 {[%emt 00:00:11] [%clk 00:02:34]} a6
{[%emt 00:00:11] [%clk 00:02:43]} 12. Be2 {[%emt 00:00:02] [%clk 00:02:34]} b5
{[%emt 00:00:18] [%clk 00:02:27]} 13. a3 {[%emt 00:00:06] [%clk 00:02:31]} Ne5
{[%emt 00:00:09] [%clk 00:02:19]} 14. Qg3 {[%emt 00:00:04] [%clk 00:02:28]} Nc4
{[%emt 00:00:02] [%clk 00:02:20]} 15. Bc1 {[%emt 00:00:27] [%clk 00:02:03]} Bb7
{[%emt 00:00:05] [%clk 00:02:17]} 16. f3 {[%emt 00:00:09] [%clk 00:01:56]} Rac8
{[%emt 00:00:01] [%clk 00:02:18]} 17. g5 {[%emt 00:00:06] [%clk 00:01:53]} Nh5
{[%emt 00:00:30] [%clk 00:01:50]} 18. Qg4 {[%emt 00:00:15] [%clk 00:01:41]} g6
{[%emt 00:00:03] [%clk 00:01:49]} 19. f4 {[%emt 00:00:05] [%clk 00:01:38]} Qb6
{[%emt 00:00:20] [%clk 00:01:31]} 20. Qh3 {[%emt 00:00:17] [%clk 00:01:23]} Ng7
{[%emt 00:00:03] [%clk 00:01:30]} 21. Qg3 {[%emt 00:00:03] [%clk 00:01:21]} d5
{[%emt 00:00:12] [%clk 00:01:21]} 22. h4 {[%emt 00:00:17] [%clk 00:01:06]} d4
{[%emt 00:00:11] [%clk 00:01:12]} 23. Nd1 {[%emt 00:00:13] [%clk 00:00:55]} Bxe4
{[%emt 00:00:02] [%clk 00:01:11]} 24. Rh2 {[%emt 00:00:12] [%clk 00:00:46]} Bxc2
{[%emt 00:00:12] [%clk 00:01:01]} 25. Bxc4 {[%emt 00:00:10] [%clk 00:00:38]}
bxc4 {[%emt 00:00:17] [%clk 00:00:45]} 26. Rxc2 {[%emt 00:00:02] [%clk
00:00:38]} Nf5 {[%emt 00:00:03] [%clk 00:00:44]} 27. Qh3 {[%emt 00:00:18] [%clk
00:00:22]} cxb3 {[%emt 00:00:04] [%clk 00:00:43]} 28. Rxc8 {[%emt 00:00:10]
[%clk 00:00:14]} Rxc8 {[%emt 00:00:01] [%clk 00:00:44]} 29. Bd2 {[%emt 00:00:04]
[%clk 00:00:12]} Rc2 {[%emt 00:00:08] [%clk 00:00:38]} 30. Nf2 {[%emt 00:00:07]
[%clk 00:00:07]} Rxb2 {[%emt 00:00:09] [%clk 00:00:31]} 31. h5 {[%emt 00:00:03]
[%clk 00:00:05]} Ra2 {[%emt 00:00:11] [%clk 00:00:22]} 32. Rb1 {[%emt 00:00:01]
[%clk 00:00:06]} b2 {[%emt 00:00:03] [%clk 00:00:21]} 33. Qd3 {[%emt 00:00:05]
[%clk 00:00:03]} Rxa3 {[%emt 00:00:04] [%clk 00:00:18]} 34. Qc4 {[%emt 00:00:02]
[%clk 00:00:03]} Ra1 {[%emt 00:00:02] [%clk 00:00:19]} 35. Qc8+ {[%emt 00:00:03]
[%clk 00:00:00]} Qd8 {[%emt 00:00:01]} 36. Qc2 {[%emt 00:00:01] [%clk 00:00:00]}
0-1

[Site "Europe Echecs"]

[Event "Championnat d'Europe de Blitz"]
[Date "2024.12.09"]
[White "Schneider, Ilja"]
[Black "Radeva, Viktoria"]
[WhiteElo "2414"]
[BlackElo "2275"]
[Round "10.40"]
[Result "1-0"]
[TimeControl "180+2"]

1. e4 {[%clk 00:03:02]} c5 {[%clk 00:03:03]} 2. Nc3 {[%clk 00:03:03]} Nc6 {[%emt
00:00:04] [%clk 00:03:02]} 3. Bb5 {[%clk 00:03:04]} Nd4 {[%emt 00:00:01] [%clk
00:03:03]} 4. Nf3 {[%clk 00:03:06]} a6 {[%emt 00:00:24] [%clk 00:02:41]} 5. Bd3
{[%clk 00:03:06]} Nc6 {[%emt 00:00:10] [%clk 00:02:34]} 6. O-O {[%emt 00:00:02]
[%clk 00:03:06]} e5 {[%emt 00:00:02] [%clk 00:02:34]} 7. Bc4 {[%emt 00:00:19]
[%clk 00:02:49]} d6 {[%emt 00:00:03] [%clk 00:02:33]} 8. d3 {[%emt 00:00:04]
[%clk 00:02:47]} Be7 {[%emt 00:00:06] [%clk 00:02:29]} 9. Ng5 {[%emt 00:00:11]
[%clk 00:02:39]} Bxg5 {[%emt 00:00:28] [%clk 00:02:03]} 10. Qh5 {[%emt 00:00:01]
[%clk 00:02:40]} Be7 {[%emt 00:00:32] [%clk 00:01:33]} 11. Qxf7+ {[%emt
00:00:25] [%clk 00:02:17]} Kd7 {[%clk 00:01:34]} 12. Be6+ {[%emt 00:00:28] [%clk
00:01:51]} Kc7 {[%emt 00:00:01] [%clk 00:01:35]} 13. Nd5+ {[%emt 00:00:03] [%clk
00:01:50]} Kb8 {[%emt 00:00:01] [%clk 00:01:36]} 14. Bxc8 {[%emt 00:00:01] [%clk
00:01:51]} Kxc8 {[%emt 00:00:09] [%clk 00:01:29]} 15. Qxg7 {[%emt 00:00:04]
[%clk 00:01:48]} Bf6 {[%emt 00:00:11] [%clk 00:01:21]} 16. Qf7 {[%emt 00:00:39]
[%clk 00:01:11]} Kb8 {[%emt 00:00:08] [%clk 00:01:14]} 17. f4 {[%emt 00:00:05]
[%clk 00:01:08]} exf4 {[%emt 00:00:02] [%clk 00:01:14]} 18. Bxf4 {[%emt
00:00:03] [%clk 00:01:07]} Ka7 {[%emt 00:00:10] [%clk 00:01:06]} 19. Nxf6 {[%emt
00:00:17] [%clk 00:00:52]} Qxf6 {[%emt 00:00:12] [%clk 00:00:56]} 20. Qxf6
{[%emt 00:00:01] [%clk 00:00:53]} Nxf6 {[%clk 00:00:57]} 21. Bxd6 {[%emt
00:00:02] [%clk 00:00:53]} Nd7 {[%emt 00:00:01] [%clk 00:00:58]} 22. Rf7 {[%emt
00:00:01] [%clk 00:00:54]} Rad8 {[%emt 00:00:04] [%clk 00:00:56]} 23. Raf1
{[%emt 00:00:06] [%clk 00:00:50]} Kb6 {[%emt 00:00:04] [%clk 00:00:55]} 24. R1f5
{[%emt 00:00:02] [%clk 00:00:49]} Rhg8 {[%emt 00:00:04] [%clk 00:00:53]} 25.
Rxh7 {[%emt 00:00:02] [%clk 00:00:49]} Rg6 {[%emt 00:00:01] [%clk 00:00:54]} 26.
e5 {[%emt 00:00:12] [%clk 00:00:40]} Nf8 {[%emt 00:00:09] [%clk 00:00:47]} 27.
Bxf8 {[%emt 00:00:10] [%clk 00:00:31]} Nd4 {[%emt 00:00:04] [%clk 00:00:45]} 28.
Rf2 {[%emt 00:00:05] [%clk 00:00:28]} Ne6 {[%emt 00:00:07] [%clk 00:00:40]} 29.
Rh6 {[%emt 00:00:06] [%clk 00:00:24]} Rxh6 {[%emt 00:00:14] [%clk 00:00:28]} 30.
Bxh6 {[%clk 00:00:25]} c4 {[%emt 00:00:02] [%clk 00:00:28]} 31. Be3+ {[%clk
00:00:26]} Kc6 {[%clk 00:00:29]} 32. d4 {[%emt 00:00:01] [%clk 00:00:26]} Nxd4
{[%emt 00:00:06] [%clk 00:00:25]} 33. Rf6+ {[%emt 00:00:06] [%clk 00:00:23]} Kb5
{[%emt 00:00:05] [%clk 00:00:22]} 34. Rd6 {[%emt 00:00:04] [%clk 00:00:20]} Rxd6
{[%emt 00:00:10] [%clk 00:00:15]} 35. exd6 {[%clk 00:00:21]} Ne6 {[%emt
00:00:02] [%clk 00:00:15]} 36. h4 {[%emt 00:00:03] [%clk 00:00:20]} Kc6 {[%clk
00:00:17]} 37. h5 {[%clk 00:00:22]} Kxd6 {[%emt 00:00:01] [%clk 00:00:18]} 38.
h6 {[%clk 00:00:23]} Nf8 {[%emt 00:00:03] [%clk 00:00:17]} 39. Kf2 {[%clk
00:00:24]} Ke6 {[%emt 00:00:01] [%clk 00:00:17]} 40. Kf3 {[%clk 00:00:25]} Kf5
{[%emt 00:00:01] [%clk 00:00:18]} 41. g4+ {[%clk 00:00:27]} Kg6 {[%emt 00:00:01]
[%clk 00:00:19]} 42. Ke4 {[%emt 00:00:01] [%clk 00:00:27]} Nd7 {[%emt 00:00:05]}
43. Bd4 {[%clk 00:00:27]} Kxh6 {[%emt 00:00:02] [%clk 00:00:18]} 44. Kd5 {[%clk
00:00:29]} b5 {[%emt 00:00:02] [%clk 00:00:18]} 45. Kc6 {[%clk 00:00:30]} Nf8
{[%emt 00:00:01] [%clk 00:00:18]} 46. Kb6 {[%emt 00:00:02] [%clk 00:00:29]} Ne6
{[%emt 00:00:01] [%clk 00:00:19]} 47. Be3 {[%clk 00:00:31]} Kg6 {[%emt 00:00:01]
[%clk 00:00:20]} 48. Kxa6 {[%clk 00:00:32]} b4 {[%emt 00:00:03] [%clk 00:00:19]}
49. Kb5 {[%clk 00:00:33]} c3 {[%emt 00:00:02] [%clk 00:00:19]} 50. b3 {[%emt
00:00:03] [%clk 00:00:32]} Nc7+ {[%emt 00:00:04] [%clk 00:00:17]} 51. Kc4 {[%emt
00:00:07] [%clk 00:00:27]} Kf6 {[%emt 00:00:07] [%clk 00:00:12]} 52. Bd4+ {[%emt
00:00:02] [%clk 00:00:27]} Kg5 {[%emt 00:00:01] [%clk 00:00:13]} 53. Kxb4 {[%clk
00:00:28]} Nd5+ {[%emt 00:00:01] [%clk 00:00:14]} 54. Kc4 {[%clk 00:00:29]} Nc7
{[%emt 00:00:06] [%clk 00:00:10]} 55. a4 {[%emt 00:00:02] [%clk 00:00:29]} 1-0

[Site "Europe Echecs"]

[Event "Championnat d'Europe de Blitz"]
[Date "2024.12.09"]
[White "Avramidou, Anastasia"]
[Black "Costachi, Mihnea"]
[WhiteElo "2298"]
[BlackElo "2464"]
[Round "10.41"]
[Result "0-1"]
[TimeControl "180+2"]

1. d4 {[%clk 00:03:03]} Nf6 {[%emt 00:00:01] [%clk 00:03:03]} 2. c4 {[%clk
00:03:04]} g6 {[%emt 00:00:01] [%clk 00:03:04]} 3. h4 {[%emt 00:00:03] [%clk
00:03:04]} Bg7 {[%emt 00:00:16] [%clk 00:02:49]} 4. Nc3 {[%emt 00:00:03] [%clk
00:03:03]} h6 {[%emt 00:00:03] [%clk 00:02:48]} 5. e4 {[%emt 00:00:02] [%clk
00:03:04]} d6 {[%emt 00:00:01] [%clk 00:02:50]} 6. Be2 {[%clk 00:03:04]} O-O
{[%emt 00:00:10] [%clk 00:02:42]} 7. Be3 {[%emt 00:00:02] [%clk 00:03:04]} c5
{[%emt 00:00:07] [%clk 00:02:38]} 8. d5 {[%emt 00:00:03] [%clk 00:03:03]} e6
{[%emt 00:00:07] [%clk 00:02:32]} 9. Qd2 {[%emt 00:00:11] [%clk 00:02:54]} exd5
{[%emt 00:00:02] [%clk 00:02:32]} 10. exd5 {[%emt 00:00:03] [%clk 00:02:53]} Kh7
{[%emt 00:00:06] [%clk 00:02:28]} 11. h5 {[%emt 00:00:32] [%clk 00:02:23]} g5
{[%emt 00:00:04] [%clk 00:02:26]} 12. Bd3+ {[%emt 00:00:01] [%clk 00:02:24]} Kh8
{[%emt 00:00:23] [%clk 00:02:05]} 13. f3 {[%emt 00:00:26] [%clk 00:01:59]} Nfd7
{[%emt 00:00:20] [%clk 00:01:48]} 14. O-O-O {[%emt 00:00:36] [%clk 00:01:24]}
Ne5 {[%emt 00:00:01] [%clk 00:01:49]} 15. f4 {[%emt 00:00:16] [%clk 00:01:11]}
Nxd3+ {[%emt 00:00:21] [%clk 00:01:29]} 16. Qxd3 {[%clk 00:01:12]} g4 {[%emt
00:00:01] [%clk 00:01:31]} 17. Nge2 {[%emt 00:00:16] [%clk 00:00:58]} f5 {[%emt
00:00:01] [%clk 00:01:32]} 18. Ng3 {[%emt 00:00:04] [%clk 00:00:55]} Na6 {[%emt
00:00:13] [%clk 00:01:22]} 19. a3 {[%emt 00:00:12] [%clk 00:00:45]} Nc7 {[%clk
00:01:23]} 20. Bd2 {[%emt 00:00:01] [%clk 00:00:45]} Qf6 {[%emt 00:00:06] [%clk
00:01:19]} 21. Qc2 {[%emt 00:00:04] [%clk 00:00:43]} Bd7 {[%emt 00:00:18] [%clk
00:01:03]} 22. Rde1 {[%clk 00:00:45]} a6 {[%emt 00:00:08] [%clk 00:00:57]} 23.
Nd1 {[%emt 00:00:02] [%clk 00:00:45]} b5 {[%emt 00:00:06] [%clk 00:00:53]} 24.
Bc3 {[%clk 00:00:46]} Qf7 {[%clk 00:00:53]} 25. Bxg7+ {[%emt 00:00:18] [%clk
00:00:30]} Kxg7 {[%emt 00:00:02] [%clk 00:00:53]} 26. Qc3+ {[%emt 00:00:09]
[%clk 00:00:23]} Kh7 {[%emt 00:00:02] [%clk 00:00:54]} 27. Ne3 {[%emt 00:00:03]
[%clk 00:00:22]} Rae8 {[%emt 00:00:04] [%clk 00:00:52]} 28. Qd3 {[%emt 00:00:12]
[%clk 00:00:12]} bxc4 {[%emt 00:00:05] [%clk 00:00:49]} 29. Qxc4 {[%emt
00:00:02] [%clk 00:00:13]} Nb5 {[%emt 00:00:05] [%clk 00:00:46]} 30. Qd3 {[%emt
00:00:03] [%clk 00:00:11]} Nd4 {[%clk 00:00:47]} 31. Nxg4 {[%emt 00:00:04] [%clk
00:00:09]} Qg7 {[%emt 00:00:08] [%clk 00:00:42]} 32. Nf2 {[%emt 00:00:05] [%clk
00:00:06]} Rb8 {[%emt 00:00:09] [%clk 00:00:35]} 33. Nd1 {[%clk 00:00:07]} Rb3
{[%emt 00:00:08] [%clk 00:00:29]} 34. Nc3 {[%clk 00:00:08]} Rfb8 {[%clk
00:00:31]} 35. Nge2 {[%emt 00:00:05] [%clk 00:00:06]} Rxb2 {[%emt 00:00:06]
[%clk 00:00:27]} 36. Nxd4 {[%clk 00:00:07]} cxd4 {[%emt 00:00:01] [%clk
00:00:28]} 37. Nd1 {[%emt 00:00:04] [%clk 00:00:04]} R2b3 {[%emt 00:00:04] [%clk
00:00:27]} 38. Qe2 {[%emt 00:00:03] [%clk 00:00:03]} Rb1+ {[%emt 00:00:08] [%clk
00:00:21]} 39. Kd2 {[%emt 00:00:01] [%clk 00:00:04]} R1b2+ {[%emt 00:00:02]
[%clk 00:00:21]} 40. Nxb2 {[%emt 00:00:01] [%clk 00:00:05]} Rxb2+ {[%clk
00:00:22]} 41. Kd1 {[%emt 00:00:02] [%clk 00:00:05]} Rxe2 {[%emt 00:00:03] [%clk
00:00:20]} 42. Rxe2 {[%clk 00:00:06]} d3 {[%clk 00:00:22]} 43. Ree1 {[%emt
00:00:03] [%clk 00:00:06]} Qb2 {[%emt 00:00:12] [%clk 00:00:12]} 44. Re7+ {[%emt
00:00:02] [%clk 00:00:06]} Kg8 {[%clk 00:00:13]} 45. Ke1 {[%emt 00:00:05] [%clk
00:00:03]} Qc1+ {[%emt 00:00:06] [%clk 00:00:10]} 0-1

[Site "Europe Echecs"]